fUSD/lending_fUSD_20250629
["ID","MTS","AMOUNT","RATE_DAILY","PERIOD"]
[368496971,1751190803105,-499.7,0.00032328,3]
[368496972,1751190803114,-248.72926744,0.00032328,3]
[368496973,1751190803123,-1126.76,0.00032328,3]
[368496974,1751190803132,-1903.95,0.00032328,3]
[368496975,1751190803141,-7138.85,0.00032328,3]
[368496976,1751190803150,-490.0,0.00032328,3]
[368496977,1751190803160,-1687.9,0.00032328,3]
[368496978,1751190803169,-605.34,0.00032328,3]
[368496979,1751190803178,-624.57,0.00032328,3]
[368496980,1751190803187,-1080.18,0.00032328,3]
[368496981,1751190803197,-1199.32,0.00032328,3]
[368496982,1751190803206,-490.0,0.00032328,3]
[368496983,1751190803215,-1902.03,0.00032328,3]
[368496984,1751190803224,-685.5,0.00032328,3]
[368496985,1751190803233,-985.04,0.00032328,3]
[368496986,1751190803242,-2277.33,0.00032328,3]
[368496987,1751190803251,-3579.22,0.00032328,3]
[368496988,1751190803261,-1202.94,0.00032328,3]
[368496989,1751190803270,-490.0,0.00032328,3]
[368496990,1751190803280,-1406.03,0.00032328,3]
[368496991,1751190803290,-809.87,0.00032328,3]
[368496992,1751190803299,-1369.16,0.00032328,3]
[368496993,1751190803308,-2322.41,0.00032328,3]
[368496994,1751190803317,-11425.24,0.00032328,3]
[368496995,1751190803326,-892.36,0.00032328,3]
[368496996,1751190803335,-936.2,0.00032328,3]
[368496997,1751190803345,-7389.77,0.00032328,3]
[368496998,1751190803355,-2363.6,0.00032328,3]
[368496999,1751190803364,-1344.12,0.00032328,3]
[368497000,1751190803374,-490.0,0.00032328,3]
[368497001,1751190803383,-490.0,0.00032328,3]
[368497002,1751190803393,-1010.37,0.00032328,3]
[368497003,1751190803402,-3943.02,0.00032328,3]
[368497004,1751190803411,-719.55,0.00032328,3]
[368497005,1751190803420,-2127.37,0.00032328,3]
[368497006,1751190803429,-3378.38,0.00032328,3]
[368497007,1751190803437,-962.36,0.00032328,3]
[368497008,1751190803447,-1167.04,0.00032328,3]
[368497009,1751190803456,-2325.84,0.00032328,3]
[368497010,1751190803465,-1319.73,0.00032328,3]
[368497011,1751190803474,-509.95,0.00032328,3]
[368497012,1751190803483,-613.68,0.00032328,3]
[368497013,1751190803493,-2715.66,0.00032328,3]
[368497014,1751190803506,-1043.95,0.00032328,3]
[368497015,1751190803515,-1355.41,0.00032328,3]
[368497016,1751190803525,-1294.86,0.00032328,3]
[368497017,1751190803534,-2207.5,0.00032328,3]
[368497018,1751190803545,-545.36,0.00032328,3]
[368497019,1751190803555,-1588.45,0.00032328,3]
[368497020,1751190803564,-4741.41,0.00032328,3]
[368497021,1751190803573,-490.0,0.00032328,3]
[368497022,1751190803583,-826.61,0.00032328,3]
[368497023,1751190803592,-3228.0,0.00032328,3]
[368497024,1751190803601,-886.06,0.00032328,3]
[368497025,1751190803610,-1170.72,0.00032328,3]
[368497026,1751190803619,-9205.97,0.00032328,3]
[368497027,1751190803628,-1424.96,0.00032328,3]
[368497028,1751190803637,-2306.21,0.00032328,3]
[368497029,1751190803646,-3412.3,0.00032328,3]
[368497030,1751190803656,-728.26,0.00032328,3]
[368497031,1751190803665,-1625.19,0.00032328,3]
[368497032,1751190803674,-490.0,0.00032328,3]
[368497033,1751190803684,-1125.2,0.00032328,3]
[368497034,1751190803693,-736.63,0.00032328,3]
[368497035,1751190803702,-1386.0,0.00032328,3]
[368497036,1751190803712,-1073.8,0.00032328,3]
[368497037,1751190803721,-1530.28,0.00032328,3]
[368497038,1751190803730,-2006.57,0.00032328,3]
[368497039,1751190803740,-2091.51,0.00032328,3]
[368497040,1751190803749,-2126.77,0.00032328,3]
[368497041,1751190803760,-1779.52,0.00032328,3]
[368497042,1751190803770,-1673.45,0.00032328,3]
[368497043,1751190803779,-1303.39,0.00032328,3]
[368497044,1751190803788,-776.8,0.00032328,3]
[368497045,1751190803798,-490.0,0.00032328,3]
[368497046,1751190803807,-2000.1,0.00032328,3]
[368497047,1751190803817,-4507.51,0.00032328,3]
[368497048,1751190803828,-3480.9,0.00032328,3]
[368497049,1751190803839,-1935.08,0.00032328,3]
[368497050,1751190803850,-1632.66,0.00032328,3]
[368497051,1751190803860,-1569.37,0.00032328,3]
[368497052,1751190803869,-2530.56,0.00032328,3]
[368497053,1751190803879,-2452.49,0.00032328,3]
[368497054,1751190803888,-490.0,0.00032328,3]
[368497055,1751190803898,-1489.85,0.00032328,3]
[368497056,1751190803907,-1193.32,0.00032328,3]
[368497057,1751190803916,-2419.87,0.00032328,3]
[368497058,1751190803926,-1993.35,0.00032328,3]
[368497059,1751190803935,-588.25,0.00032328,3]
[368497060,1751190803945,-3522.67,0.00032328,3]
[368497061,1751190803955,-1690.76,0.00032328,3]
[368497062,1751190803965,-2018.73,0.00032328,3]
[368497063,1751190803976,-2243.02,0.00032328,3]
[368497064,1751190803985,-1621.16,0.00032328,3]
[368497065,1751190803995,-2069.08,0.00032328,3]
[368497066,1751190804005,-2803.72,0.00032328,3]
[368497067,1751190804014,-490.0,0.00032328,3]
[368497068,1751190804023,-490.0,0.00032328,3]
[368497069,1751190804032,-697.23,0.00032328,3]
[368497070,1751190804042,-2344.83,0.00032328,3]
[368497071,1751190804051,-1156.58,0.00032328,3]
[368497072,1751190804061,-1455.99,0.00032328,3]
[368497073,1751190804070,-896.46,0.00032328,3]
[368497074,1751190804080,-1697.89,0.00032328,3]
[368497075,1751190804089,-2847.6,0.00032328,3]
[368497076,1751190804100,-1196.0,0.00032328,3]
[368497077,1751190804110,-2317.49,0.00032328,3]
[368497078,1751190804120,-490.0,0.00032328,3]
[368497079,1751190804131,-4069.2,0.00032328,3]
[368497080,1751190804141,-1620.63,0.00032328,3]
[368497081,1751190804151,-24643.72,0.00032328,3]
[368497082,1751190804162,-3762.98,0.00032328,3]
[368497083,1751190804198,-499.82,0.00032328,3]
[368497084,1751190804208,-1069.72,0.00032328,3]
[368497085,1751190804218,-498.07,0.00032328,3]
[368497086,1751190804227,-4782.64,0.00032328,3]
[368497087,1751190804236,-1100.83,0.00032328,3]
[368497088,1751190804246,-1824.13,0.00032328,3]
[368497089,1751190804255,-725.1,0.00032328,3]
[368497090,1751190804265,-2504.1,0.00032328,3]
[368497091,1751190804274,-1607.63,0.00032328,3]
[368497092,1751190804283,-1132.25,0.00032328,3]
[368497093,1751190804294,-11678.75,0.00032328,3]
[368497094,1751190804304,-3607.16,0.00032328,3]
[368497095,1751190804314,-674.39,0.00032328,3]
[368497096,1751190804323,-2388.21,0.00032328,3]
[368497098,1751190804332,-632.01,0.00032328,3]
[368497099,1751190804341,-3749.55,0.00032328,3]
[368497100,1751190804350,-2478.96,0.00032328,3]
[368497101,1751190804359,-536.71,0.00032328,3]
[368497102,1751190804368,-1798.53,0.00032328,3]
[368497103,1751190804377,-490.0,0.00032328,3]
[368497104,1751190804386,-3221.5,0.00032328,3]
[368497105,1751190804395,-1535.71,0.00032328,3]
[368497106,1751190804405,-1629.68,0.00032328,3]
[368497107,1751190804415,-548.24,0.00032328,3]
[368497108,1751190804424,-2263.99,0.00032328,3]
[368497109,1751190804434,-1677.32,0.00032328,3]
[368497110,1751190804443,-6718.76,0.00032328,3]
[368497111,1751190804453,-1322.58,0.00032328,3]
[368497112,1751190804463,-857.93,0.00032328,3]
[368497113,1751190804472,-553.18,0.00032328,3]
[368497114,1751190804482,-18559.3,0.00032328,3]
[368497115,1751190804491,-490.0,0.00032328,3]
[368497116,1751190804501,-2586.37,0.00032328,3]
[368497117,1751190804513,-987.81,0.00032328,3]
[368497118,1751190804523,-1263.2,0.00032328,3]
[368497119,1751190804533,-698.11,0.00032328,3]
[368497120,1751190804543,-826.74,0.00032328,3]
[368497121,1751190804554,-3862.63,0.00032328,3]
[368497122,1751190804563,-1943.16,0.00032328,3]
[368497123,1751190804576,-4122.27,0.00032328,3]
[368497124,1751190804586,-490.0,0.00032328,3]
[368497125,1751190804595,-490.0,0.00032328,3]
[368497126,1751190804605,-369.65875457,0.00032328,3]
[368497127,1751190804615,-490.0,0.00032328,3]
[368497128,1751190804624,-1385.92,0.00032328,3]
[368497129,1751190804634,-1552.69,0.00032328,3]
[368497130,1751190804644,-5320.1,0.00032328,3]
[368497131,1751190804654,-490.0,0.00032328,3]
[368497132,1751190804664,-2723.89,0.00032328,3]
[368497133,1751190804674,-2347.57,0.00032328,3]
[368497134,1751190804684,-2896.25,0.00032328,3]
[368497135,1751190804694,-1307.14,0.00032328,3]
[368497136,1751190804704,-1874.39,0.00032328,3]
[368497137,1751190804714,-4529.09,0.00032328,3]
[368497138,1751190804724,-2024.74,0.00032328,3]
[368497139,1751190804734,-919.31,0.00032328,3]
[368497140,1751190804744,-620.43,0.00032328,3]
[368497141,1751190804753,-5682.59,0.00032328,3]
[368497142,1751190804763,-2104.31,0.00032328,3]
[368497143,1751190804773,-626.13,0.00032328,3]
[368497144,1751190804783,-1968.64,0.00032328,3]
[368497145,1751190804793,-1770.11,0.00032328,3]
[368497146,1751190804803,-1764.06,0.00032328,3]
[368497147,1751190804814,-700.52,0.00032328,3]
[368497148,1751190804825,-2133.2,0.00032328,3]
[368497149,1751190804835,-1730.13,0.00032328,3]
[368497150,1751190804845,-2165.68,0.00032328,3]
[368497151,1751190804856,-883.4,0.00032328,3]
[368497152,1751190804866,-513.72,0.00032328,3]
[368497153,1751190804876,-1926.75,0.00032328,3]
[368497154,1751190804886,-5921.12,0.00032328,3]
[368497155,1751190804895,-490.0,0.00032328,3]
[368497156,1751190804904,-2141.99,0.00032328,3]
[368497157,1751190804914,-2043.04,0.00032328,3]
[368497158,1751190804924,-631.01,0.00032328,3]
[368497159,1751190804934,-1625.9,0.00032328,3]
[368497160,1751190804943,-696.89,0.00032328,3]
[368497161,1751190804953,-3241.41,0.00032328,3]
[368497162,1751190804964,-2087.25,0.00032328,3]
[368497163,1751190804974,-1891.34,0.00032328,3]
[368497164,1751190804984,-4543.11,0.00032328,3]
[368497165,1751190804994,-3866.16,0.00032328,3]
[368497166,1751190805003,-569.82,0.00032328,3]
[368497167,1751190805013,-855.58,0.00032328,3]
[368497168,1751190805023,-1931.12,0.00032328,3]
[368497169,1751190805033,-490.0,0.00032328,3]
[368497170,1751190805043,-1948.57,0.00032328,3]
[368497171,1751190805054,-1323.16,0.00032328,3]
[368497172,1751190805064,-971.22,0.00032328,3]
[368497173,1751190805075,-6890.33,0.00032328,3]
[368497174,1751190805085,-1740.09,0.00032328,3]
[368497175,1751190805095,-488.25836936,0.00032328,3]
[368497176,1751190805107,-1509.17,0.00032328,3]
[368497177,1751190805116,-802.0,0.00032329,3]
[368497178,1751190805126,-453.0,0.00032329,3]
[368497179,1751190805139,-150.0,0.00032333,7]
[368497180,1751190805149,-312.68872601,0.00032335,7]
[368497181,1751190805159,-294.80816015,0.00032335,7]
[368497182,1751190805171,-150.0,0.00032342,7]
[368497183,1751190805182,-150.0,0.00032367,7]
[368497184,1751190805194,-150.0,0.00032371,7]
[368497185,1751190805204,-150.0,0.00032372,7]
[368497186,1751190805215,-312.68872601,0.00032401,7]
[368497187,1751190805226,-294.80816015,0.00032401,7]
[368497188,1751190805236,-150.0,0.00032413,7]
[368497189,1751190805246,-150.0,0.00032458,7]
[368497190,1751190805256,-312.68872601,0.00032467,7]
[368497191,1751190805266,-294.80816015,0.00032467,7]
[368497192,1751190805277,-150.0,0.00032469,7]
[368497193,1751190805287,-150.0,0.00032471,7]
[368497194,1751190805297,-150.0,0.00032485,7]
[368497195,1751190805307,-2043.46130184,0.00032486,27]
[368497196,1751190805318,-150.0,0.00032493,7]
[368497197,1751190805329,-150.0,0.00032507,7]
[368497198,1751190805340,-312.68872601,0.00032534,7]
[368497199,1751190805350,-294.80816015,0.00032534,7]
[368497200,1751190805359,-150.0,0.00032543,7]
[368497201,1751190805370,-150.0,0.00032567,7]
[368497202,1751190805380,-150.0,0.00032573,7]
[368497203,1751190805389,-312.68872601,0.000326,7]
[368497204,1751190805399,-294.80816015,0.000326,7]
[368497205,1751190805410,-150.0,0.000326,7]
[368497206,1751190805420,-150.0,0.000326,7]
[368497207,1751190805430,-1528.36,0.00032602,9]
[368497208,1751190805440,-600.46,0.00032602,3]
[368497209,1751190805450,-542.33,0.00032602,3]
[368497210,1751190805459,-847.37,0.00032602,3]
[368497211,1751190805469,-468.40093416,0.00032602,3]
[368497212,1751190805479,-490.0,0.00032602,3]
[368497213,1751190805489,-490.0,0.00032602,3]
[368497214,1751190805499,-943.56,0.00032602,3]
[368497215,1751190805512,-948.9,0.00032602,3]
[368497216,1751190805522,-667.1,0.00032602,3]
[368497217,1751190805532,-978.74,0.00032602,3]
[368497218,1751190805542,-642.29,0.00032602,3]
[368497219,1751190805554,-490.0,0.00032602,3]
[368497220,1751190805564,-1186.44,0.00032602,3]
[368497221,1751190805574,-490.0,0.00032602,3]
[368497222,1751190805586,-490.0,0.00032602,3]
[368497223,1751190805596,-2554.302964,0.00032602,3]
[368497224,1751190805606,-853.16,0.00032602,3]
[368497225,1751190805615,-2816.157543,0.00032602,3]
[368497226,1751190805625,-2200.380726,0.00032602,3]
[368497227,1751190805635,-500.85,0.00032602,3]
[368497228,1751190805644,-392.680419,0.00032602,3]
[368497229,1751190805654,-550.61652922,0.00032602,3]
[368497230,1751190805663,-887.72,0.00032602,3]
[368497231,1751190805674,-556.18,0.00032602,3]
[368497232,1751190805684,-153.102854,0.00032602,3]
[368497233,1751190805694,-656.47,0.00032602,3]
[368497234,1751190805968,-571.97,0.00032602,3]
[368497235,1751190805978,-858.42,0.00032602,3]
[368497236,1751190805988,-490.0,0.00032602,3]
[368497237,1751190805998,-1167.71,0.00032602,3]
[368497238,1751190806009,-648.74,0.00032602,3]
[368497239,1751190806018,-167.777922,0.00032602,3]
[368497240,1751190806028,-642.42,0.00032602,3]
[368497241,1751190806038,-523.68,0.00032602,3]
[368497242,1751190806048,-490.0,0.00032602,3]
[368497243,1751190806058,-625.75,0.00032602,3]
[368497244,1751190806068,-263.34150731,0.00032602,3]
[368497245,1751190806077,-1529.36,0.00032602,3]
[368497246,1751190806087,-725.47,0.00032602,3]
[368497247,1751190806097,-167.777922,0.00032602,3]
[368497248,1751190806107,-490.0,0.00032602,3]
[368497249,1751190806116,-1837.93,0.00032602,3]
[368497250,1751190806126,-961.81,0.00032602,3]
[368497251,1751190806136,-677.59,0.00032602,3]
[368497252,1751190806145,-490.0,0.00032602,3]
[368497253,1751190806155,-490.0,0.00032602,3]
[368497254,1751190806164,-811.6,0.00032602,3]
[368497255,1751190806174,-701.76,0.00032602,3]
[368497256,1751190806184,-565.07672502,0.00032602,3]
[368497257,1751190806193,-801.55,0.00032602,3]
[368497258,1751190806203,-493.56,0.00032602,3]
[368497259,1751190806213,-490.0,0.00032602,3]
[368497260,1751190806222,-590.68,0.00032602,3]
[368497261,1751190806231,-490.0,0.00032602,3]
[368497262,1751190806241,-740.41,0.00032602,3]
[368497263,1751190806251,-930.82,0.00032602,3]
[368497264,1751190806261,-1134.82,0.00032602,3]
[368497265,1751190806270,-629.08,0.00032602,3]
[368497266,1751190806281,-507.56,0.00032602,3]
[368497267,1751190806291,-1395.58,0.00032602,3]
[368497268,1751190806300,-508.09,0.00032602,3]
[368497269,1751190806311,-596.83,0.00032602,3]
[368497270,1751190806321,-516.57,0.00032602,3]
[368497271,1751190806331,-1527.96,0.00032602,3]
[368497272,1751190806341,-2015.14,0.00032602,3]
[368497273,1751190806351,-615.0,0.00032602,3]
[368497274,1751190806361,-889.47,0.00032602,3]
[368497275,1751190806371,-2302.9,0.00032602,3]
[368497276,1751190806382,-945.27,0.00032602,3]
[368497277,1751190806395,-743.01,0.00032602,3]
[368497278,1751190806404,-643.27,0.00032602,3]
[368497279,1751190806414,-1940.61,0.00032602,3]
[368497280,1751190806425,-1952.95,0.00032602,3]
[368497281,1751190806435,-1201.96,0.00032602,3]
[368497282,1751190806445,-1310.06,0.00032602,3]
[368497283,1751190806455,-369.84,0.00032602,3]
[368497284,1751190806464,-1125.22,0.00032602,3]
[368497285,1751190806474,-1224.35,0.00032602,3]
[368497286,1751190806484,-976.06,0.00032602,3]
[368497287,1751190806494,-1824.88,0.00032602,3]
[368497288,1751190806503,-749.58,0.00032602,3]
[368497289,1751190806514,-603.75,0.00032602,3]
[368497290,1751190806526,-957.88,0.00032602,3]
[368497291,1751190806536,-490.0,0.00032602,3]
[368497292,1751190806546,-538.77,0.00032602,3]
[368497293,1751190806557,-776.78,0.00032602,3]
[368497294,1751190806567,-960.82,0.00032602,3]
[368497295,1751190806577,-894.84,0.00032602,3]
[368497296,1751190806587,-490.0,0.00032602,3]
[368497297,1751190806597,-1904.77,0.00032602,3]
[368497298,1751190806607,-1462.39,0.00032602,3]
[368497299,1751190806617,-2300.89,0.00032602,3]
[368497300,1751190806627,-253.87854819,0.00032602,3]
[368497301,1751190806637,-650.78,0.00032602,3]
[368497302,1751190806647,-2228.41,0.00032602,3]
[368497303,1751190806657,-694.52,0.00032602,3]
[368497304,1751190806666,-490.0,0.00032602,3]
[368497305,1751190806676,-1649.19,0.00032602,3]
[368497306,1751190806686,-2026.94,0.00032602,3]
[368497307,1751190806695,-490.0,0.00032602,3]
[368497308,1751190806704,-843.7,0.00032602,3]
[368497309,1751190806714,-490.0,0.00032602,3]
[368497310,1751190806724,-581.45632716,0.00032602,3]
[368497311,1751190806733,-555.65369398,0.00032602,3]
[368497312,1751190806743,-571.61,0.00032602,3]
[368497313,1751190806753,-896.97,0.00032602,3]
[368497314,1751190806762,-594.67,0.00032602,3]
[368497315,1751190806772,-1556.08,0.00032602,3]
[368497316,1751190806781,-1147.84,0.00032602,3]
[368497317,1751190806792,-490.0,0.00032602,3]
[368497318,1751190806802,-1027.62,0.00032602,3]
[368497319,1751190806812,-707.16,0.00032602,3]
[368497320,1751190806821,-880.72,0.00032602,3]
[368497321,1751190806832,-792.35,0.00032602,3]
[368497322,1751190806842,-490.0,0.00032602,3]
[368497323,1751190806852,-780.47,0.00032602,3]
[368497324,1751190806863,-560.33,0.00032602,3]
[368497325,1751190806873,-1653.81,0.00032602,3]
[368497326,1751190806883,-525.19,0.00032602,3]
[368497327,1751190806893,-1620.77,0.00032602,3]
[368497328,1751190806903,-1900.77,0.00032602,3]
[368497329,1751190806913,-944.59,0.00032602,3]
[368497330,1751190806923,-521.24,0.00032602,3]
[368497331,1751190806932,-1487.61,0.00032602,3]
[368497332,1751190806942,-1556.78,0.00032602,3]
[368497333,1751190806952,-1633.03,0.00032602,3]
[368497334,1751190806962,-1046.71,0.00032602,3]
[368497335,1751190806974,-506.3,0.00032602,3]
[368497336,1751190806984,-514.5,0.00032602,3]
[368497337,1751190806994,-490.0,0.00032602,3]
[368497338,1751190807003,-1936.24,0.00032602,3]
[368497339,1751190807013,-2262.43,0.00032602,3]
[368497340,1751190807022,-665.95,0.00032602,3]
[368497341,1751190807032,-2474.6,0.00032602,3]
[368497342,1751190807041,-1268.88,0.00032602,3]
[368497343,1751190807053,-689.16,0.00032602,3]
[368497344,1751190807062,-1400.07,0.00032602,3]
[368497345,1751190807072,-858.86,0.00032602,3]
[368497346,1751190807082,-730.59,0.00032602,3]
[368497347,1751190807092,-666.33,0.00032602,3]
[368497348,1751190807102,-1700.28,0.00032602,3]
[368497349,1751190807112,-818.45,0.00032602,3]
[368497350,1751190807121,-1024.15,0.00032602,3]
[368497351,1751190807131,-709.17,0.00032602,3]
[368497352,1751190807140,-1027.52,0.00032602,3]
[368497353,1751190807150,-2038.87,0.00032602,3]
[368497354,1751190807159,-534.02,0.00032602,3]
[368497355,1751190807170,-2394.84,0.00032602,3]
[368497356,1751190807179,-1167.05,0.00032602,3]
[368497357,1751190807189,-1561.51,0.00032602,3]
[368497358,1751190807199,-899.19,0.00032602,3]
[368497359,1751190807209,-935.31,0.00032602,3]
[368497360,1751190807219,-771.06,0.00032602,3]
[368497361,1751190807228,-610.33,0.00032602,3]
[368497362,1751190807238,-1503.84,0.00032602,3]
[368497363,1751190807248,-1626.28,0.00032602,3]
[368497364,1751190807257,-566.4,0.00032602,3]
[368497365,1751190807267,-715.86,0.00032602,3]
[368497366,1751190807276,-516.29,0.00032602,3]
[368497367,1751190807286,-934.93,0.00032602,3]
[368497368,1751190807296,-589.35,0.00032602,3]
[368497369,1751190807307,-2211.02,0.00032602,3]
[368497370,1751190807316,-1313.26,0.00032602,3]
[368497371,1751190807326,-2018.3,0.00032602,3]
[368497372,1751190807335,-878.98,0.00032602,3]
[368497373,1751190807346,-1272.1,0.00032602,3]
[368497374,1751190807355,-1320.46,0.00032602,3]
[368497375,1751190807365,-2254.95,0.00032602,3]
[368497376,1751190807376,-369.93260135,0.00032602,3]
[368497377,1751190807386,-801.49,0.00032602,3]
[368497378,1751190807396,-793.92,0.00032602,3]
[368497379,1751190807405,-1409.04,0.00032602,3]
[368497380,1751190807415,-566.98,0.00032602,3]
[368497381,1751190807424,-855.39,0.00032602,3]
[368497382,1751190807435,-503.31,0.00032602,3]
[368497383,1751190807444,-520.23,0.00032602,3]
[368497384,1751190807453,-1383.19,0.00032602,3]
[368497385,1751190807463,-907.17,0.00032602,3]
[368497386,1751190807473,-1733.55,0.00032602,3]
[368497387,1751190807482,-1411.93,0.00032602,3]
[368497388,1751190807492,-490.0,0.00032602,3]
[368497389,1751190807503,-1161.29,0.00032602,3]
[368497390,1751190807515,-490.0,0.00032602,3]
[368497391,1751190807526,-648.19,0.00032602,3]
[368497392,1751190807537,-664.2,0.00032602,3]
[368497393,1751190807547,-492.59,0.00032602,3]
[368497394,1751190807560,-1411.98,0.00032602,3]
[368497395,1751190807569,-490.0,0.00032602,3]
[368497396,1751190807579,-1476.05,0.00032602,3]
[368497397,1751190807588,-2483.68,0.00032602,3]
[368497398,1751190807599,-622.78,0.00032602,3]
[368497399,1751190807609,-2320.44,0.00032602,3]
[368497400,1751190807619,-1539.15,0.00032602,3]
[368497401,1751190807629,-894.95,0.00032602,3]
[368497402,1751190807639,-701.41,0.00032602,3]
[368497403,1751190807649,-526.1,0.00032602,3]
[368497404,1751190807658,-1005.08,0.00032602,3]
[368497405,1751190807668,-1199.97,0.00032602,3]
[368497406,1751190807677,-1032.78,0.00032602,3]
[368497407,1751190807687,-549.61,0.00032602,3]
[368497408,1751190807697,-1283.76,0.00032602,3]
[368497409,1751190807706,-901.15,0.00032602,3]
[368497410,1751190807716,-545.6,0.00032602,3]
[368497411,1751190807725,-841.45,0.00032602,3]
[368497412,1751190807734,-525.0,0.00032602,3]
[368497413,1751190807744,-442.83366069,0.00032602,3]
[368497414,1751190807754,-1956.7,0.00032602,3]
[368497415,1751190807764,-1559.17,0.00032602,3]
[368497416,1751190807774,-908.9,0.00032602,3]
[368497417,1751190807783,-772.36,0.00032602,3]
[368497418,1751190807793,-1731.31,0.00032602,3]
[368497419,1751190807802,-1241.41,0.00032602,3]
[368497420,1751190807812,-490.0,0.00032602,3]
[368497421,1751190807822,-628.572236,0.00032602,3]
[368497422,1751190807834,-2257.75,0.00032602,3]
[368497423,1751190807843,-1736.54,0.00032602,3]
[368497424,1751190807852,-2325.03,0.00032602,3]
[368497425,1751190807861,-613.43,0.00032602,3]
[368497426,1751190807871,-1117.78,0.00032602,3]
[368497427,1751190807881,-896.69,0.00032602,3]
[368497428,1751190807890,-998.0,0.00032602,3]
[368497429,1751190807899,-1022.6,0.00032602,3]
[368497430,1751190807909,-1382.19,0.00032602,3]
[368497431,1751190807920,-1087.69,0.00032602,3]
[368497432,1751190807931,-937.32,0.00032602,3]
[368497433,1751190807940,-2003.29,0.00032602,3]
[368497434,1751190807950,-1073.82,0.00032602,3]
[368497435,1751190807960,-1428.66,0.00032602,3]
[368497436,1751190807970,-906.56,0.00032602,3]
[368497437,1751190807979,-751.94,0.00032602,3]
[368497438,1751190807989,-1284.2,0.00032602,3]
[368497440,1751190807999,-995.73,0.00032602,3]
[368497441,1751190808010,-730.89,0.00032602,3]
[368497442,1751190808020,-423.06130243,0.00032602,3]
[368497444,1751190808031,-490.0,0.00032602,3]
[368497445,1751190808040,-3819.49,0.00032602,3]
[368497446,1751190808051,-614.58,0.00032602,3]
[368497447,1751190808061,-2099.43,0.00032602,3]
[368497448,1751190808070,-591.09,0.00032602,3]
[368497449,1751190808080,-1763.09,0.00032602,3]
[368497450,1751190808090,-930.34,0.00032602,3]
[368497451,1751190808100,-1553.22,0.00032602,3]
[368497452,1751190808110,-490.0,0.00032602,3]
[368497453,1751190808121,-935.65,0.00032602,3]
[368497454,1751190808130,-490.0,0.00032602,3]
[368497455,1751190808140,-587.32,0.00032602,3]
[368497456,1751190808150,-4450.47,0.00032602,3]
[368497457,1751190808160,-1288.37,0.00032602,3]
[368497458,1751190808170,-490.0,0.00032602,3]
[368497459,1751190808179,-528.19,0.00032602,3]
[368497460,1751190808189,-959.78,0.00032602,3]
[368497461,1751190808199,-766.16,0.00032602,3]
[368497462,1751190808208,-1454.99,0.00032602,3]
[368497463,1751190808218,-1065.99,0.00032602,3]
[368497464,1751190808227,-1177.8,0.00032602,3]
[368497465,1751190808236,-921.89,0.00032602,3]
[368497466,1751190808246,-1049.98,0.00032602,3]
[368497467,1751190808256,-490.0,0.00032602,3]
[368497468,1751190808265,-603.29,0.00032602,3]
[368497469,1751190808275,-490.0,0.00032602,3]
[368497470,1751190808284,-1101.22,0.00032602,3]
[368497471,1751190808293,-490.0,0.00032602,3]
[368497472,1751190808303,-1690.83,0.00032602,3]
[368497473,1751190808312,-494.25,0.00032602,3]